fUSD/lending_fUSD_20240528
["ID","MTS","AMOUNT","RATE_DAILY","PERIOD"]
[328123144,1716906631841,-464.53483232,9.088e-05,2]
[328123146,1716906631895,-2351.41144802,9.088e-05,2]
[328123147,1716906631904,-155.0,9.089e-05,2]
[328123148,1716906631914,-447.39331429,9.089e-05,2]
[328123149,1716906631923,-505.62075808,9.089e-05,2]
[328123150,1716906631932,-7526.23404168,9.089e-05,2]
[328123151,1716906631942,-27977.37264416,9.089e-05,2]
[328123152,1716906631951,-1754.244565,9.09e-05,2]
[328123153,1716906631961,-452.42025595,9.135e-05,2]
[328123154,1716906631970,-514.0,9.135e-05,2]
[328123155,1716906631979,-533.82347897,9.24e-05,2]
[328123156,1716906631988,-639.09,9.344e-05,2]
[328123157,1716906631998,-2854.68,9.67e-05,2]
[328123158,1716906632008,-499.99,9.67e-05,2]
[328123159,1716906632017,-2307.23351333,9.675e-05,2]
[328123160,1716906632027,-1000.0,9.81e-05,2]
[328123161,1716906632036,-2230.00157091,9.927e-05,2]
[328123162,1716906632045,-999.99,9.929e-05,2]
[328123163,1716906632055,-1000.0,9.93e-05,2]
[328123164,1716906632064,-362.44522294,9.937e-05,2]
[328123165,1716906632073,-24638.72274803,9.937e-05,2]
[328123166,1716906632082,-1361.43772127,9.937e-05,2]
[328123168,1716906632091,-155.0,9.937e-05,2]
[328123170,1716906632101,-300.0,9.937e-05,2]
[328123172,1716906632110,-58541.10337489,9.937e-05,2]
[328123174,1716906632122,-1173.16786747,9.938e-05,2]
[328123175,1716906632131,-292.31917088,9.94e-05,2]
[328123176,1716906632142,-326.093692,9.94e-05,2]
[328123177,1716906632151,-781.15428773,9.94e-05,2]
[328123178,1716906632160,-250.0,0.00010086,2]
[328123179,1716906632175,-250.0,0.000101,2]
[328123180,1716906632185,-968.89,0.00010135,2]
[328123181,1716906632195,-284.3,0.00010529,2]
[328123182,1716906632204,-284.3,0.00010558,2]
[328123183,1716906632214,-284.3,0.00010587,2]
[328123184,1716906632225,-284.3,0.00010615,2]
[328123185,1716906632234,-284.3,0.00010644,2]
[328123186,1716906632244,-284.3,0.00010673,2]
[328123187,1716906632254,-284.3,0.00010702,2]
[328123188,1716906632264,-284.3,0.00010731,2]
[328123189,1716906632274,-284.3,0.0001076,2]
[328123190,1716906632283,-284.3,0.00010789,2]
[328123191,1716906632294,-284.3,0.00010818,2]
[328123192,1716906632303,-284.3,0.00010846,2]
[328123193,1716906632313,-284.3,0.00010875,2]
[328123194,1716906632323,-284.3,0.00010904,2]
[328123195,1716906632333,-284.3,0.00010933,2]
[328123197,1716906632343,-150.0,0.00010959,2]
[328123198,1716906632352,-284.3,0.00010962,2]
[328123199,1716906632362,-284.3,0.00010991,2]
[328123200,1716906632371,-284.3,0.0001102,2]
[328123201,1716906632381,-284.3,0.00011049,2]
[328123202,1716906632394,-284.3,0.00011077,2]
[328123203,1716906632405,-719.17,0.00011167,2]
[328123204,1716906632416,-23697.86596629,0.0001118,2]
[328123205,1716906632430,-202.13403371,0.0001118,2]
[328123206,1716906632440,-639.09,0.00011608,2]
[328123207,1716906632450,-734.41,0.00011699,2]
[328123208,1716906632459,-200.0,0.00011703,2]
[328123209,1716906632469,-5433.407838,0.00011757,2]
[328123210,1716906632479,-1000.0,0.00011758,2]
[328123211,1716906632488,-168.46,0.00012048,2]
[328123212,1716906632498,-701.87350517,0.00012252,2]
[328123213,1716906632507,-312.71181864,0.00012253,2]
[328123214,1716906632517,-9681.5374,0.000128,2]
[328123215,1716906632527,-200.91092393,0.00012836,2]
[328123216,1716906632536,-656.27275998,0.00012898,2]
[328123217,1716906632546,-15266.5782778,0.00012898,2]
[328123218,1716906632555,-1014.9009,0.00012898,2]
[328123219,1716906632565,-194.4869091,0.00012899,2]
[328123220,1716906632575,-938.7059888,0.00012899,2]
[328123221,1716906632586,-11075.7619,0.000129,2]
[328123222,1716906632596,-59536.2814,0.000129,2]
[328123223,1716906632606,-171.08976276,0.000129,2]
[328123224,1716906632616,-174.238497,0.000129,2]
[328123225,1716906632625,-175.50655605,0.000129,2]
[328123226,1716906632635,-410.17369019,0.000129,2]
[328123227,1716906632648,-299.23019146,0.000129,2]
[328123228,1716906632658,-6355.16212349,0.000129,2]
[328123229,1716906632668,-3385.49202329,0.000129,2]
[328123230,1716906632678,-4279.64994208,0.000129,2]
[328123231,1716906632688,-168.06517559,0.000129,2]
[328123232,1716906632698,-150.0,0.000129,2]
[328123233,1716906632709,-150.0,0.000129,2]
[328123234,1716906632722,-150.54194685,0.000129,2]
[328123235,1716906632732,-312.57733266,0.000129,2]
[328123236,1716906632742,-4601.56659857,0.00012986,2]
[328123237,1716906632751,-161.3191441,0.00012988,2]
[328123238,1716906632762,-1912.1974288,0.00012988,2]
[328123239,1716906632772,-208.2476462,0.00012988,2]
[328123240,1716906632781,-205.48746961,0.0001299,2]
[328123241,1716906632793,-153.02,0.0001299,2]
[328123242,1716906632802,-153.02,0.0001299,2]
[328123243,1716906632814,-161.3191441,0.00012991,2]
[328123244,1716906632824,-161.3191441,0.00012991,2]
[328123245,1716906632834,-1708.7387241,0.00012991,2]
[328123246,1716906632844,-1505.2800194,0.00012991,2]
[328123247,1716906632854,-208.2476462,0.00012991,2]
[328123248,1716906632864,-208.2476462,0.00012991,2]
[328123249,1716906632873,-6164.42169924,0.00012997,2]
[328123250,1716906632883,-5266.27921247,0.00012997,2]
[328123251,1716906632895,-643.9738315,0.00012998,2]
[328123252,1716906632904,-205.63826311,0.00012998,2]
[328123253,1716906632913,-155.97820346,0.00012998,2]
[328123254,1716906632922,-155.0,0.00012998,2]
[328123255,1716906632931,-4741.84357369,0.00012999,2]
[328123256,1716906632941,-200.87999732,0.00012999,2]
[328123257,1716906632950,-155.0,0.00012999,2]
[328123258,1716906632960,-268.32530534,0.00012999,2]
[328123259,1716906632970,-623.222624,0.00012999,2]
[328123260,1716906632979,-180.0,0.00012999,2]
[328123261,1716906632989,-409.84120861,0.00012999,2]
[328123262,1716906632998,-283.12482256,0.00012999,2]
[328123263,1716906633008,-288.18130188,0.00012999,2]
[328123264,1716906633018,-259.08174527,0.00012999,2]
[328123265,1716906633027,-523.91853483,0.00012999,2]
[328123266,1716906633037,-1273.86928001,0.00012999,2]
[328123267,1716906633047,-156.15744793,0.00012999,2]
[328123268,1716906633056,-3089.166756,0.00012999,2]
[328123269,1716906633066,-17339.45199339,0.00012999,2]
[328123270,1716906633076,-2000.09259381,0.00012999,2]
[328123271,1716906633086,-601.71205611,0.00012999,2]
[328123272,1716906633097,-536.24165231,0.00012999,2]
[328123273,1716906633112,-1467.92775067,0.00012999,2]
[328123274,1716906633128,-124046.40127122,0.00013,2]
[328123275,1716906633237,-4986.82347819,0.00013,2]
[328123276,1716906633252,-267712.76959258,0.00013,2]
[328123277,1716906633267,-881.46321957,0.00013,2]
[328123278,1716906633285,-713.54686118,0.00013,2]
[328123279,1716906633301,-1068.965344,0.00013,2]
[328123280,1716906633317,-909.3594811,0.00013,2]
[328123281,1716906638057,-312.98,0.00010094,2]
[328123282,1716906638067,-733.96387533,0.00012999,2]
[328123283,1716906638077,-407.60091152,0.00013,2]
[328123284,1716906638088,-986.04641223,0.00013,2]
[328123292,1716906638484,-69369.42684932,0.00013,2]
[328123293,1716906638537,-294.985,0.00013,2]
[328123294,1716906638550,-805424.57816946,0.00013,2]
[328123295,1716906638560,-209.076,0.00013,2]
[328123296,1716906638569,-346.57302212,0.00013,2]
[328123297,1716906638579,-1000.0,0.00013,2]
[328123298,1716906638588,-918.0,0.00013,2]
[328123299,1716906638598,-2000.0,0.00013,2]
[328123300,1716906638607,-200.0,0.00013,2]
[328123301,1716906638617,-193.906,0.00013,2]
[328123302,1716906638626,-2398.0,0.00013,2]
[328123303,1716906638636,-808.0,0.00013,2]
[328123304,1716906638645,-468.531,0.00013,2]
[328123305,1716906638657,-151.063,0.00013,2]
[328123306,1716906638667,-1651.0,0.00013,2]
[328123307,1716906638676,-216.0,0.00013,2]
[328123308,1716906638685,-249.414,0.00013,2]
[328123309,1716906638695,-205.092,0.00013,2]
[328123310,1716906638705,-1304.0,0.00013,2]
[328123311,1716906638718,-3166.0,0.00013,2]
[328123312,1716906638727,-544.0,0.00013,2]
[328123313,1716906638737,-500.0,0.00013,2]
[328123314,1716906638747,-500.0,0.00013,2]
[328123315,1716906638758,-500.0,0.00013,2]
[328123316,1716906638768,-500.0,0.00013,2]
[328123317,1716906638777,-500.0,0.00013,2]
[328123318,1716906638787,-500.0,0.00013,2]
[328123319,1716906638798,-500.0,0.00013,2]
[328123320,1716906638807,-500.0,0.00013,2]
[328123321,1716906638817,-500.0,0.00013,2]
[328123322,1716906638826,-500.0,0.00013,2]
[328123323,1716906638835,-500.0,0.00013,2]
[328123324,1716906638845,-500.0,0.00013,2]
[328123325,1716906638855,-500.0,0.00013,2]
[328123326,1716906638864,-500.0,0.00013,2]
[328123327,1716906638873,-500.0,0.00013,2]
[328123328,1716906638883,-500.0,0.00013,2]
[328123329,1716906638892,-500.0,0.00013,2]
[328123330,1716906638903,-500.0,0.00013,2]
[328123331,1716906638912,-500.0,0.00013,2]
[328123332,1716906638922,-500.0,0.00013,2]
[328123333,1716906638932,-500.0,0.00013,2]
[328123334,1716906638941,-500.0,0.00013,2]
[328123335,1716906638950,-500.0,0.00013,2]
[328123336,1716906638960,-500.0,0.00013,2]
[328123337,1716906638969,-500.0,0.00013,2]
[328123338,1716906638978,-500.0,0.00013,2]
[328123339,1716906638987,-500.0,0.00013,2]
[328123340,1716906638996,-500.0,0.00013,2]
[328123341,1716906639006,-500.0,0.00013,2]
[328123342,1716906639016,-500.0,0.00013,2]
[328123343,1716906639025,-500.0,0.00013,2]
[328123344,1716906639035,-500.0,0.00013,2]
[328123345,1716906639044,-500.0,0.00013,2]
[328123346,1716906639054,-500.0,0.00013,2]
[328123347,1716906639064,-500.0,0.00013,2]
[328123348,1716906639074,-500.0,0.00013,2]
[328123349,1716906639083,-500.0,0.00013,2]
[328123350,1716906639093,-500.0,0.00013,2]
[328123351,1716906639103,-500.0,0.00013,2]
[328123352,1716906639113,-500.0,0.00013,2]
[328123353,1716906639122,-500.0,0.00013,2]
[328123354,1716906639131,-500.0,0.00013,2]
[328123355,1716906639141,-500.0,0.00013,2]
[328123356,1716906639154,-500.0,0.00013,2]
[328123357,1716906639164,-500.0,0.00013,2]
[328123358,1716906639175,-500.0,0.00013,2]
[328123359,1716906639184,-500.0,0.00013,2]
[328123360,1716906639194,-500.0,0.00013,2]
[328123361,1716906639205,-500.0,0.00013,2]
[328123362,1716906639215,-500.0,0.00013,2]
[328123363,1716906639224,-500.0,0.00013,2]
[328123364,1716906639234,-500.0,0.00013,2]
[328123365,1716906639244,-500.0,0.00013,2]
[328123366,1716906639255,-500.0,0.00013,2]
[328123367,1716906639265,-500.0,0.00013,2]
[328123368,1716906639275,-500.0,0.00013,2]
[328123369,1716906639285,-500.0,0.00013,2]
[328123370,1716906639295,-500.0,0.00013,2]
[328123371,1716906639306,-500.0,0.00013,2]
[328123372,1716906639316,-500.0,0.00013,2]
[328123373,1716906639326,-500.0,0.00013,2]
[328123374,1716906639336,-500.0,0.00013,2]
[328123375,1716906639346,-500.0,0.00013,2]
[328123376,1716906639358,-500.0,0.00013,2]
[328123377,1716906639367,-500.0,0.00013,2]
[328123378,1716906639378,-500.0,0.00013,2]
[328123379,1716906639388,-500.0,0.00013,2]
[328123380,1716906639401,-500.0,0.00013,2]
[328123381,1716906639410,-500.0,0.00013,2]
[328123382,1716906639420,-500.0,0.00013,2]
[328123383,1716906639429,-500.0,0.00013,2]
[328123384,1716906639439,-500.0,0.00013,2]
[328123385,1716906639450,-500.0,0.00013,2]
[328123386,1716906639461,-500.0,0.00013,2]
[328123387,1716906639471,-500.0,0.00013,2]
[328123388,1716906639481,-500.0,0.00013,2]
[328123389,1716906639491,-500.0,0.00013,2]
[328123390,1716906639501,-500.0,0.00013,2]
[328123391,1716906639510,-500.0,0.00013,2]
[328123392,1716906639520,-500.0,0.00013,2]
[328123393,1716906639530,-500.0,0.00013,2]
[328123394,1716906639541,-500.0,0.00013,2]
[328123395,1716906639552,-500.0,0.00013,2]
[328123396,1716906639562,-500.0,0.00013,2]
[328123397,1716906639572,-500.0,0.00013,2]
[328123398,1716906639582,-500.0,0.00013,2]
[328123399,1716906639592,-3000.0,0.00013,2]
[328123400,1716906639603,-5766.0,0.00013,2]
[328123401,1716906639613,-357.0,0.00013,2]
[328123402,1716906639623,-289.0,0.00013,2]
[328123403,1716906639633,-5140.0,0.00013,2]
[328123404,1716906639642,-1467.0,0.00013,2]
[328123405,1716906639655,-37944.0,0.00013,2]
[328123406,1716906639665,-975.0,0.00013,2]
[328123407,1716906639675,-11075.0,0.00013018,2]
[328123408,1716906639685,-28124.93030784,0.00013074,2]
[328123409,1716906641132,-214.79554032,9.089e-05,2]
[328123410,1716906641142,-1294.507,0.00013,2]
[328123411,1716906641155,-3425.06969216,0.00013074,2]
[328123412,1716906641164,-2000.0,0.0001313,2]
[328123413,1716906641173,-200.0,0.0001313,2]
[328123414,1716906641182,-153.02,0.00013218,2]
[328123415,1716906641192,-1000.0,0.00013228,2]
[328123416,1716906641202,-2000.0,0.00013261,2]
[328123417,1716906641212,-200.0,0.00013261,2]
[328123418,1716906641222,-704.22,0.00013315,2]
[328123419,1716906641231,-318.25,0.00013315,2]
[328123420,1716906641240,-524.45,0.00013315,2]
[328123421,1716906641250,-421.08,0.00013315,2]
[328123422,1716906641259,-2000.0,0.00013394,2]
[328123423,1716906641269,-200.0,0.00013394,2]
[328123424,1716906641278,-15266.57827775,0.00013555,2]
[328123425,1716906641288,-1000.0,0.00013699,2]
[328123426,1716906641297,-1000.0,0.00013699,2]
[328123427,1716906641307,-200.0,0.00013699,2]
[328123428,1716906641317,-2751.0,0.00013699,2]
[328123429,1716906641326,-200.0,0.00013699,2]
[328123430,1716906641335,-1697.41,0.00013699,2]
[328123431,1716906641345,-4399.04,0.00013699,2]
[328123432,1716906641355,-639.09,0.00013872,2]
[328123433,1716906641364,-719.17,0.00013907,2]
[328123434,1716906641373,-156.64,0.00013973,2]
[328123435,1716906641382,-155.13,0.00013973,2]
[328123436,1716906641392,-224.95,0.00013973,2]
[328123437,1716906641404,-155.22122519,0.00014,2]
[328123438,1716906641414,-3000.0,0.0001405,2]
[328123439,1716906641423,-500.0,0.0001405,2]
[328123440,1716906641433,-500.0,0.0001405,2]
[328123441,1716906641442,-500.0,0.0001405,2]
[328123442,1716906641452,-500.0,0.0001405,2]
[328123443,1716906641461,-500.0,0.0001405,2]
[328123444,1716906641471,-500.0,0.0001405,2]
[328123445,1716906641480,-500.0,0.0001405,2]
[328123446,1716906641490,-500.0,0.0001405,2]
[328123447,1716906641499,-500.0,0.0001405,2]
[328123448,1716906641509,-500.0,0.0001405,2]
[328123449,1716906641518,-500.0,0.0001405,2]
[328123450,1716906641528,-500.0,0.0001405,2]
[328123451,1716906641538,-500.0,0.0001405,2]
[328123452,1716906641547,-500.0,0.0001405,2]
[328123453,1716906641557,-500.0,0.0001405,2]
[328123454,1716906641566,-500.0,0.0001405,2]
[328123455,1716906641576,-500.0,0.0001405,2]
[328123456,1716906641585,-500.0,0.0001405,2]
[328123457,1716906641594,-500.0,0.0001405,2]
[328123458,1716906641603,-500.0,0.0001405,2]
[328123459,1716906641613,-500.0,0.0001405,2]
[328123460,1716906641622,-500.0,0.0001405,2]
[328123461,1716906641631,-500.0,0.0001405,2]
[328123462,1716906641640,-500.0,0.0001405,2]
[328123463,1716906641653,-500.0,0.0001405,2]
[328123464,1716906641662,-500.0,0.0001405,2]
[328123465,1716906641671,-500.0,0.0001405,2]
[328123466,1716906641680,-500.0,0.0001405,2]
[328123467,1716906641689,-500.0,0.0001405,2]
[328123468,1716906641699,-500.0,0.0001405,2]
[328123469,1716906641712,-500.0,0.0001405,2]
[328123470,1716906641721,-500.0,0.0001405,2]
[328123471,1716906641732,-500.0,0.0001405,2]
[328123472,1716906641741,-500.0,0.0001405,2]
[328123473,1716906641752,-1697.41,0.00014384,2]
[328123474,1716906641761,-1304.845285,0.00014521,2]
[328123475,1716906641771,-500.0,0.00014565,2]
[328123476,1716906641780,-500.0,0.00014565,2]
[328123477,1716906641790,-500.0,0.00014565,2]
[328123478,1716906641800,-500.0,0.00014565,2]
[328123479,1716906641809,-500.0,0.00014565,2]
[328123480,1716906641818,-500.0,0.00014565,2]
[328123481,1716906641828,-500.0,0.00014565,2]
[328123482,1716906641837,-500.0,0.00014565,2]
[328123483,1716906641847,-500.0,0.00014565,2]
[328123484,1716906641857,-500.0,0.00014565,2]
[328123485,1716906641867,-500.0,0.00014565,2]
[328123486,1716906641876,-500.0,0.00014565,2]
[328123487,1716906641886,-500.0,0.00014565,2]
[328123488,1716906641895,-500.0,0.00014565,2]
[328123489,1716906641907,-500.0,0.00014565,2]
[328123491,1716906641916,-500.0,0.00014565,2]
[328123492,1716906642065,-500.0,0.00014565,2]
[328123493,1716906642074,-500.0,0.00014565,2]
[328123494,1716906642084,-500.0,0.00014565,2]
[328123495,1716906642093,-500.0,0.00014565,2]
[328123496,1716906642103,-500.0,0.00014565,2]
[328123497,1716906642112,-500.0,0.00014565,2]
[328123498,1716906642122,-500.0,0.00014565,2]
[328123499,1716906642132,-500.0,0.00014565,2]
[328123500,1716906642142,-500.0,0.00014565,2]
[328123501,1716906642153,-500.0,0.00014565,2]
[328123502,1716906642163,-500.0,0.00014565,2]
[328123503,1716906642173,-500.0,0.00014565,2]
[328123504,1716906642182,-500.0,0.00014565,2]
[328123505,1716906642192,-500.0,0.00014565,2]
[328123506,1716906642203,-500.0,0.00014565,2]
[328123507,1716906642212,-500.0,0.00014565,2]
[328123508,1716906642222,-500.0,0.00014565,2]
[328123509,1716906642232,-500.0,0.00014565,2]
[328123510,1716906642242,-500.0,0.00014565,2]
[328123511,1716906642253,-500.0,0.00014565,2]
[328123512,1716906642263,-500.0,0.00014565,2]
[328123513,1716906642273,-500.0,0.00014565,2]
[328123514,1716906642283,-500.0,0.00014565,2]
[328123515,1716906642292,-500.0,0.00014565,2]
[328123516,1716906642301,-500.0,0.00014565,2]
[328123517,1716906642311,-500.0,0.00014565,2]
[328123518,1716906642320,-500.0,0.00014565,2]
[328123519,1716906642330,-500.0,0.00014565,2]
[328123520,1716906642340,-500.0,0.00014565,2]
[328123521,1716906642351,-500.0,0.00014565,2]
[328123522,1716906642361,-500.0,0.00014565,2]
[328123523,1716906642371,-500.0,0.00014565,2]
[328123524,1716906642381,-500.0,0.00014565,2]
[328123525,1716906642390,-500.0,0.00014565,2]
[328123526,1716906642402,-500.0,0.00014565,2]
[328123527,1716906642411,-500.0,0.00014565,2]
[328123528,1716906642421,-500.0,0.00014565,2]
[328123529,1716906642431,-500.0,0.00014565,2]
[328123530,1716906642440,-500.0,0.00014565,2]
[328123531,1716906642450,-500.0,0.00014565,2]
[328123532,1716906642460,-500.0,0.00014565,2]
[328123533,1716906642473,-500.0,0.00014565,2]
[328123534,1716906642483,-500.0,0.00014565,2]
[328123535,1716906642495,-253.36913284,0.0001458,2]
[328123536,1716906642505,-1000.0,0.00014698,2]
[328123537,1716906642515,-4279.64994197,0.00014769,2]
[328123538,1716906642525,-325.28545213,0.00015,2]
[328123539,1716906642535,-4995.26383857,0.00015,2]
[328123540,1716906642546,-500.0,0.00015,2]
[328123541,1716906642556,-155.22486064,0.00015,2]
[328123542,1716906642566,-155.0,0.00015,2]
[328123543,1716906642575,-1044.13352714,0.00015,2]
[328123544,1716906642585,-5900.0,0.00015,2]
[328123545,1716906642595,-200.0,0.00015,2]
[328123546,1716906642605,-257.65395905,0.00015,2]
[328123547,1716906642615,-4217.45561659,0.00015,2]
[328123548,1716906642625,-155.54656387,0.00015,2]
[328123549,1716906642635,-155.20000855,0.00015,2]
[328123550,1716906642645,-620.8177248,0.00015,2]
[328123551,1716906642658,-184.01261491,0.00015,2]
[328123552,1716906642668,-300.0,0.00015068,2]
[328123553,1716906642678,-1697.41,0.00015068,2]
[328123554,1716906642688,-3000.0,0.0001531,2]
[328123555,1716906642698,-1304.845285,0.00015342,2]
[328123556,1716906642711,-1000.0,0.000155,2]
[328123557,1716906642722,-224.0,0.000155,2]
[328123558,1716906642732,-421.43,0.00015644,2]
[328123559,1716906642743,-11068.96,0.00015753,2]
[328123560,1716906642754,-1697.41,0.00015753,2]
[328123561,1716906642764,-167.0,0.00015831,2]
[328123562,1716906642775,-167.0,0.00015831,2]
[328123563,1716906642785,-167.0,0.00015831,2]
[328123564,1716906642795,-167.0,0.00015831,2]
[328123565,1716906642807,-173.0,0.00015924,3]
[328123566,1716906642818,-173.0,0.00015924,2]
[328123567,1716906642828,-150.0,0.00016,2]
[328123568,1716906642839,-164.0,0.00016,2]
[328123569,1716906642849,-2398.0,0.00016,2]
[328123570,1716906642859,-808.0,0.00016,2]
[328123571,1716906642868,-445.0,0.00016,2]
[328123572,1716906642878,-150.0,0.00016,2]
[328123573,1716906642888,-1651.0,0.00016,2]
[328123574,1716906642901,-216.0,0.00016,2]
[328123575,1716906642910,-150.0,0.00016,2]
[328123576,1716906642920,-1304.0,0.00016,2]
[328123577,1716906642930,-3166.0,0.00016,2]
[328123578,1716906642941,-544.0,0.00016,2]
[328123579,1716906642950,-318.0,0.00016,2]
[328123580,1716906642960,-5766.0,0.00016,2]
[328123581,1716906642971,-289.0,0.00016,2]
[328123582,1716906642981,-5140.0,0.00016,2]
[328123583,1716906642991,-1467.0,0.00016,2]
[328123584,1716906643000,-17933.24519575,0.00016,2]
[328123585,1716906643015,-19050.72980425,0.00016,2]
[328123586,1716906643025,-975.0,0.00016,2]
[328123587,1716906643034,-1224.0,0.00016,2]
[328123588,1716906643044,-12466.41236673,0.00016043,2]
[328123589,1716906643132,-2800.16591102,0.00016043,2]
[328123590,1716906643142,-2829.31250398,0.00016116,2]
[328123591,1716906643160,-368.78465954,0.00016116,2]
[328123592,1716906643171,-6801.89283648,0.00016116,2]
[328123593,1716906643181,-9.55716352,0.00016136,2]
[328123594,1716906643193,-629.53283648,0.00016136,2]
[328123595,1716906643203,-1304.845285,0.00016164,2]
[328123596,1716906643212,-1000.0,0.00016167,2]
[328123597,1716906643222,-3129.05,0.00016438,2]
[328123598,1716906643231,-300.0,0.00016438,2]
[328123599,1716906643242,-1697.41,0.00016438,2]
[328123600,1716906643251,-701.74,0.00016438,2]
[328123601,1716906643261,-263.5850197,0.000165,2]
[328123602,1716906643271,-3000.0,0.0001655,2]
[328123603,1716906643281,-4279.64994197,0.00016638,2]
[328123604,1716906643291,-719.17,0.00016647,2]
[328123605,1716906643301,-16875.01691684,0.00016695,5]
[328123606,1716906643313,-1898.84001584,0.00016695,5]
[328123607,1716906643326,-1674.86761028,0.00016695,5]
[328123608,1716906643340,-1856.4481028,0.00016695,5]
[328123609,1716906643352,-4701.44908642,0.00016695,5]
[328123610,1716906643362,-167.0,0.00016702,2]
[328123611,1716906643372,-178.98,0.00016712,2]
[328123612,1716906643382,-3279.0,0.000168,2]
[328123613,1716906643392,-811.0,0.000168,2]
[328123614,1716906643405,-354.0,0.000168,2]
[328123615,1716906643415,-3814.0,0.00016956,2]
[328123616,1716906643424,-1304.845285,0.00016986,2]
[328123617,1716906643435,-163.89,0.00017529,2]
[328123618,1716906643444,-173.0,0.00017544,2]
[328123619,1716906643454,-167.0,0.00017573,2]
[328123620,1716906643464,-1000.0,0.00017637,2]
[328123621,1716906643474,-1000.0,0.0001777,2]
[328123622,1716906643483,-3000.0,0.000178,2]
[328123623,1716906643493,-1304.845285,0.00017808,2]
[328123624,1716906643522,-286.16,0.00017973,2]
[328123625,1716906643532,-150.0,0.00017973,2]
[328123626,1716906643542,-300.0,0.00017973,2]
[328123627,1716906643552,-150.0,0.00017973,2]
[328123628,1716906643562,-501.25267329,0.00018,2]
[328123629,1716906643571,-804.69308319,0.00018,2]
[328123630,1716906643581,-1155.76886622,0.00018,2]
[328123631,1716906643591,-306.724,0.00018372,2]
[328123632,1716906643600,-306.724,0.00018372,2]
[328123633,1716906643610,-306.724,0.00018372,2]
[328123634,1716906643620,-639.09,0.000184,2]
[328123635,1716906643630,-167.0,0.00018444,2]
[328123636,1716906643640,-167.0,0.00018444,2]
[328123637,1716906643650,-4279.64994197,0.00018507,2]
[328123638,1716906643660,-12229.24336276,0.00018531,2]
[328123639,1716906643693,-306.724,0.00018372,2]
[328123640,1716906643704,-1378.75116208,0.00018531,2]
[328123644,1716906644678,-1645.0,0.00013,2]
[328123645,1716906644687,-1645.0,0.00016,2]
[328123646,1716906644697,-306.724,0.00018372,2]
[328123647,1716906644709,-218.826,0.00018531,2]
[328123648,1716906644723,-1439.75775291,0.00018531,2]
[328123649,1716906644732,-5672.01470746,0.00018596,2]
[328123650,1716906644741,-1304.845285,0.0001863,2]
[328123651,1716906644751,-7390.76230001,0.00018998,3]
[328123652,1716906644760,-410.5352738,0.00019,2]
[328123653,1716906644770,-155.55982037,0.00019,2]
[328123654,1716906644779,-1000.0,0.00019,2]
[328123655,1716906644789,-164.0,0.00019,2]
[328123656,1716906644804,-2398.0,0.00019,2]
[328123657,1716906644815,-808.0,0.00019,2]
[328123658,1716906644824,-150.0,0.00019,2]
[328123659,1716906644833,-1651.0,0.00019,2]
[328123660,1716906644843,-216.0,0.00019,2]